bitfinex-derivatives/quotes_BNBF0:USTF0_20260221
["timestamp","ask_amount","ask_price","bid_price","bid_amount"]
[1771653536236,1.19220411,627.71,627.22,12.057]
[1771653541138,1.19220411,627.69,627.22,12.057]
[1771653541343,1.19220411,627.7,627.22,12.057]
[1771653549049,1.19220411,627.71,627.22,12.057]
[1771653570169,1.19220411,627.7,627.22,12.057]
[1771653578175,1.19220411,627.69,627.22,12.057]
[1771653578373,1.19220411,627.69,627.16,1.19112566]
[1771653580073,1.19220411,627.72,627.19,1.19112566]
[1771653580278,1.19220411,627.73,627.2,1.19112566]
[1771653580675,1.59035183,627.92,627.28,1.19112566]
[1771653581180,1.59035183,627.92,627.27,1.19112566]
[1771653582082,1.59035183,627.92,627.28,9.052]
[1771653583181,1.86767029,627.93,627.28,9.052]
[1771653592089,0.27731846,627.93,627.28,9.052]
[1771653595095,0.27731846,627.93,627.26,1.19112566]
[1771653597698,0.27731846,627.93,627.27,8.523]
[1771653610807,0.27731846,627.93,627.27,9.71412566]
[1771653614310,0.27731846,627.93,627.28,1.19112566]
[1771653615411,0.27731846,627.93,627.27,8.523]
[1771653615412,0.27730851,627.86,627.27,8.523]
[1771653618813,0.27730851,627.86,627.26,1.19112566]
[1771653621819,0.27730851,627.86,627.27,6.906]
[1771653624115,0.27730851,627.86,627.27,8.09712566]
[1771653628323,0.27730851,627.86,627.27,6.906]
[1771653640827,1.19529184,627.73,627.27,6.906]
[1771653651230,1.19529184,627.72,627.27,6.906]
[1771653663848,1.19529184,627.72,627.2,1.19112566]
[1771653667553,1.19529184,627.72,627.21,3.368]
[1771653670858,1.19529184,627.72,627.21,4.55912566]
[1771653682964,1.59035183,627.84,627.21,3.368]
[1771653683264,1.19504067,627.72,627.21,4.56403386]
[1771653717088,0.27730851,627.86,627.21,3.368]
[1771653717089,1.19504067,627.7,627.21,3.368]
[1771653718092,1.19504067,627.71,627.21,3.368]
[1771653727603,1.19504067,627.71,627.17,1.19603386]
[1771653730308,1.19504067,627.71,627.18,1.775]
[1771653730908,1.19504067,627.7,627.18,1.775]
[1771653745911,1.59035183,627.81,627.18,1.775]
[1771653746112,1.19441703,627.7,627.18,1.775]
[1771653746511,1.19441703,627.7,627.15,1.19542432]
[1771653749417,1.19441703,627.7,627.16,1.401]
[1771653750216,1.19441703,627.7,627.16,2.59642432]
[1771653751116,1.19441703,627.69,627.16,2.59642432]
[1771653752212,1.19441703,627.72,627.18,1.19542432]
[1771653757926,1.19441703,627.73,627.19,1.19542432]
[1771653762121,1.19441703,627.73,627.18,1.19542432]
[1771653783237,1.19441703,627.73,627.19,1.384]
[1771653787440,1.19441703,627.69,627.19,1.384]
[1771653787836,1.19441703,627.68,627.19,1.384]
[1771653788442,1.19441703,627.69,627.19,1.384]
[1771653789041,1.19441703,627.68,627.19,1.384]
[1771653789343,1.19441703,627.69,627.19,1.384]
[1771653790943,1.19441703,627.67,627.19,1.384]
[1771653794246,1.19441703,627.68,627.19,1.384]
[1771653800954,1.19441703,627.67,627.19,1.384]
[1771653801151,1.19441703,627.6,627.19,1.384]
[1771653801453,1.19441703,627.61,627.19,1.384]
[1771653803256,1.19441703,627.62,627.02,1.19542432]
[1771653805251,1.19441703,627.63,627.02,1.19542432]
[1771653806358,1.19441703,627.64,627.02,1.19542432]
[1771653807054,1.19441703,627.64,627.03,1.386]
[1771653808360,1.19441703,627.7,627.08,1.19542432]
[1771653812662,1.19441703,627.71,627.09,1.19542432]
[1771653815764,1.19441703,627.73,627.11,1.19542432]
[1771653819469,1.19441703,627.73,627.12,1.19542432]
[1771653819667,1.19441703,627.74,627.13,1.19542432]
[1771653819870,1.19441703,627.82,627.2,1.19542432]
[1771653820966,1.19441703,627.86,627.24,1.19542432]
[1771653821272,1.19441703,627.86,627.23,1.19542432]
[1771653823271,1.19441703,627.87,627.23,1.19542432]
[1771653824369,1.19441703,627.87,627.22,1.19542432]
[1771653825174,1.19441703,627.93,627.28,1.19542432]
[1771653825474,1.19441703,627.93,627.27,1.19542432]
[1771653826171,1.19441703,627.94,627.27,1.19542432]
[1771653827373,1.19441703,627.94,627.26,1.19542432]
[1771653828272,1.19441703,627.95,627.26,1.19542432]
[1771653828773,1.19441703,627.95,627.27,1.19542432]
[1771653829276,1.19441703,627.96,627.26,1.19542432]
[1771653831276,1.19441703,627.97,627.25,1.19542432]
[1771653834378,1.19441703,627.98,627.24,1.19542432]
[1771653834679,1.19441703,628.0,627.27,1.19542432]
[1771653835281,1.19441703,628.0,627.26,1.19542432]
[1771653836381,1.19441703,628.01,627.26,1.19542432]
[1771653837482,1.19441703,628.03,627.28,1.19542432]
[1771653837682,1.19441703,628.04,627.29,1.19542432]
[1771653838283,1.19441703,628.04,627.28,1.19542432]
[1771653839381,1.19441703,628.05,627.28,1.19542432]
[1771653839779,1.19441703,628.03,627.26,1.19542432]
[1771653840185,1.19441703,628.01,627.24,1.19542432]
[1771653840383,1.19441703,627.98,627.21,1.19542432]
[1771653846785,1.19441703,628.0,627.24,1.19542432]
[1771653849188,1.19441703,627.99,627.25,1.19542432]
[1771653850991,1.19441703,627.99,627.14,1.58989336]
[1771653850992,1.19441703,628.0,627.26,1.19542432]
[1771653851291,1.19441703,628.0,627.27,1.19542432]
[1771653852290,1.19441703,627.99,627.27,1.19542432]
[1771653853393,1.19441703,627.99,627.05,2.38484004]
[1771653853394,1.19441703,627.98,627.28,1.19542432]
[1771653855191,1.19441703,627.98,627.29,1.19542432]
[1771653856296,1.19441703,627.97,627.29,1.19542432]
[1771653857391,1.19441703,627.97,627.3,1.19542432]
[1771653858297,1.19441703,627.96,627.3,1.19542432]
[1771653859392,1.19441703,627.96,627.31,1.19542432]
[1771653860295,1.19441703,627.95,627.31,1.19542432]
[1771653861399,1.19441703,627.94,627.32,1.19542432]
[1771653863301,1.19441703,627.93,627.33,1.19542432]
[1771653864401,1.19441703,627.92,627.34,1.19542432]
[1771653865501,1.19441703,627.89,627.32,1.19542432]
[1771653865702,1.19441703,627.89,627.35,1.297]
[1771653868401,1.19441703,627.88,627.35,1.297]
[1771653883815,1.19441703,627.88,627.33,1.19542432]
[1771653884322,1.19441703,627.87,627.33,1.19542432]
[1771653887721,1.19441703,627.87,627.34,1.266]
[1771653903936,1.19441703,627.8,627.34,1.266]
[1771653904135,1.19441703,627.79,627.34,1.266]
[1771653906339,1.19441703,627.8,627.34,1.266]
[1771653909244,1.19441703,627.79,627.34,1.266]
[1771653910342,1.19441703,627.8,627.34,1.266]
[1771653911041,1.19441703,627.74,627.34,1.266]
[1771653911340,1.19441703,627.75,627.34,1.266]
[1771653915349,1.59035183,627.87,627.34,1.266]
[1771653915350,1.19441703,627.76,627.34,1.266]
[1771653926760,1.19441703,627.76,627.12,1.19542432]
[1771653928059,1.19441703,627.77,627.12,1.19542432]
[1771653928262,1.19441703,627.76,627.12,1.19542432]
[1771653935266,1.19441703,627.76,627.13,1.19542432]
[1771653938373,1.19441703,627.75,627.13,1.19542432]
[1771653940374,1.19441703,627.75,627.14,1.19542432]
[1771653942370,1.19441703,627.74,627.14,1.19542432]
[1771653943279,1.19441703,627.74,627.15,1.19542432]
[1771653944378,1.19441703,627.73,627.15,1.19542432]
[1771653946278,1.19441703,627.73,627.16,1.19542432]
[1771653947282,1.19441703,627.72,627.16,1.19542432]
[1771653947783,1.19441703,627.73,627.17,1.19542432]
[1771653948277,1.19441703,627.71,627.19,1.19542432]
[1771653949282,1.59035183,627.83,627.07,1.58989336]
[1771653949486,1.19570569,627.71,627.19,1.19571718]
[1771653950985,1.19570569,627.73,627.2,1.19571718]
[1771653956088,1.19570569,627.76,627.22,1.19571718]
[1771653956388,1.19570569,627.83,627.27,1.19571718]
[1771653957085,1.19570569,627.85,627.29,1.19571718]
[1771653957485,1.19570569,627.86,627.28,1.19571718]
[1771653958289,1.19570569,627.87,627.27,1.19571718]
[1771653961092,1.19570569,627.88,627.26,1.19571718]
[1771653964292,1.19570569,627.88,627.14,1.58989336]
[1771653964293,1.19570569,627.89,627.25,1.19571718]
[1771653964799,1.19570569,627.9,627.26,1.19571718]
[1771653966296,1.19570569,627.91,627.26,1.19571718]
[1771653966693,1.19570569,627.94,627.29,1.19571718]
[1771653966899,1.19570569,627.97,627.33,1.19571718]
[1771653967097,1.19570569,627.97,627.21,1.58989336]
[1771653967098,1.19570569,627.98,627.32,1.19571718]
[1771653968196,1.19570569,627.99,627.31,1.19571718]
[1771653970100,1.19570569,627.99,627.29,1.19571718]
[1771653971099,1.19570569,628.01,627.29,1.19571718]
[1771653971299,1.19570569,628.01,627.31,1.19571718]
[1771653972199,1.19570569,628.01,627.3,1.19571718]
[1771653974101,1.19570569,628.02,627.3,1.19571718]
[1771653974597,0.2772577,628.1,627.28,1.19571718]
[1771653974598,1.19570569,628.0,627.28,1.19571718]
[1771653987305,1.19570569,627.99,627.29,1.19571718]
[1771653991310,1.19570569,627.98,627.3,1.19571718]
[1771653993413,1.19570569,627.97,627.31,1.19571718]
[1771653995310,1.19570569,627.96,627.32,1.19571718]
[1771653997319,1.19570569,627.95,627.33,1.19571718]
[1771653999324,1.19570569,627.94,627.34,1.19571718]
[1771654000225,1.19570569,627.93,627.35,1.19571718]
[1771654001422,1.19570569,627.93,627.36,1.19571718]
[1771654005923,1.19570569,627.92,627.36,1.19571718]
[1771654007122,1.19570569,627.92,627.37,1.19571718]
[1771654010229,1.19570569,627.91,627.37,1.19571718]
[1771654011129,1.19570569,627.91,627.38,1.19571718]
[1771654017138,1.19570569,627.9,627.38,1.19571718]
[1771654019238,1.19570569,627.9,627.39,1.19571718]
[1771654020135,1.19570569,627.86,627.35,1.19571718]
[1771654021040,1.19570569,627.77,627.26,1.19571718]
[1771654021336,1.19570569,627.79,627.23,1.19571718]
[1771654022340,1.19570569,627.8,627.22,1.19571718]
[1771654023341,1.19570569,627.81,627.22,1.19571718]
[1771654024140,1.19570569,627.81,627.21,1.19571718]
[1771654024339,1.19570569,627.82,627.21,1.19571718]
[1771654025539,1.19570569,627.82,627.2,1.19571718]
[1771654026342,1.19570569,627.83,627.2,1.19571718]
[1771654028337,1.19570569,627.83,627.19,1.19571718]
[1771654029340,1.19570569,627.84,627.19,1.19571718]
[1771654031342,1.19570569,627.84,627.18,1.19571718]
[1771654035347,1.19570569,627.85,627.18,1.19571718]
[1771654037349,1.19570569,627.85,627.06,1.58989336]
[1771654037350,1.19570569,627.85,627.17,1.19571718]
[1771654047357,1.19570569,627.85,627.18,1.19571718]
[1771654051054,1.19570569,627.84,627.18,1.19571718]
[1771654054159,1.19570569,627.84,627.19,1.19571718]
[1771654055360,1.19570569,627.83,627.19,1.19571718]
[1771654057164,1.19570569,627.83,627.2,1.19571718]
[1771654058364,1.19570569,627.82,627.2,1.19571718]
[1771654060169,1.19570569,627.82,627.21,1.19571718]
[1771654061273,1.19570569,627.8,627.21,1.19571718]
[1771654062072,1.19570569,627.8,627.22,1.19571718]
[1771654063170,1.19570569,627.79,627.23,1.19571718]
[1771654064172,1.19570569,627.76,627.25,1.19571718]
[1771654069287,1.19570569,627.75,627.24,1.19571718]
[1771654069486,1.19570569,627.73,627.21,1.19571718]
[1771654070684,1.19570569,627.68,627.15,1.19571718]
[1771654071383,1.19570569,627.69,627.14,1.19571718]
[1771654072387,1.19570569,627.7,627.13,1.19571718]
[1771654073990,1.59035183,627.81,627.03,0.27726543]
[1771654074190,1.19439596,627.7,627.13,1.19473457]
[1771654075390,1.19439596,627.71,627.12,1.19473457]
[1771654078393,1.19439596,627.72,627.11,1.19473457]
[1771654083598,0.27732288,627.9,626.96,1.225]
[1771654083599,1.19439596,627.71,627.1,1.19473457]
[1771654083792,1.19439596,627.65,627.03,1.19473457]
[1771654084494,1.19439596,627.66,627.03,1.19473457]
[1771654085298,1.19439596,627.66,627.02,1.19473457]
[1771654086298,1.19439596,627.67,627.02,1.19473457]
[1771654087397,1.19439596,627.67,627.01,1.19473457]
[1771654089300,1.19439596,627.68,627.01,1.19473457]
[1771654090496,1.19439596,627.68,627.0,1.19473457]
[1771654091297,1.19439596,627.67,627.0,1.19473457]
[1771654091501,1.19439596,627.68,627.0,1.19473457]
[1771654093301,1.19439596,627.68,626.99,1.19473457]
[1771654104421,1.19439596,627.68,627.0,1.19473457]
[1771654107223,1.19439596,627.67,626.99,1.19473457]
[1771654107424,1.19439596,627.66,626.99,1.19473457]
[1771654108322,1.19439596,627.66,627.0,1.19473457]
[1771654110620,1.19439596,627.65,627.0,1.19473457]
[1771654111326,1.19439596,627.65,627.01,1.19473457]
[1771654113328,1.19439596,627.64,627.02,1.19473457]
[1771654114331,1.19439596,627.63,627.02,1.19473457]
[1771654115329,1.19439596,627.63,627.03,1.19473457]
[1771654119328,1.19439596,627.62,627.03,1.19473457]
[1771654120030,1.19439596,627.61,627.02,1.19473457]
[1771654122334,1.19439596,627.6,627.02,1.19473457]
[1771654123438,1.19439596,627.6,627.03,1.19473457]
[1771654126440,1.19439596,627.59,627.03,1.19473457]
[1771654127239,1.19439596,627.59,627.04,1.19473457]
[1771654128440,1.19439596,627.58,627.05,1.19473457]
[1771654131341,1.19439596,627.58,627.04,1.19473457]
[1771654133637,1.19439596,627.55,627.01,1.19473457]
[1771654136345,1.19439596,627.56,627.01,1.19473457]
[1771654137445,1.19439596,627.51,626.95,1.19473457]
[1771654137646,1.19439596,627.48,626.93,1.19473457]
[1771654138041,1.19439596,627.45,626.9,1.19473457]
[1771654138345,1.19439596,627.46,626.88,1.19473457]
[1771654138842,1.19439596,627.37,626.79,1.19473457]
[1771654139542,1.19439596,627.39,626.77,1.19473457]
[1771654140247,1.19439596,627.4,626.77,1.19473457]
[1771654140544,1.19439596,627.44,626.82,1.19473457]
[1771654141341,1.19439596,627.44,626.81,1.19473457]
[1771654141543,1.19439596,627.45,626.8,1.19473457]
[1771654141843,1.19439596,627.43,626.79,1.19473457]
[1771654142246,1.19439596,627.43,626.75,61.51006719]
[1771654142247,1.19439596,627.44,626.78,1.19473457]
[1771654143245,1.19439596,627.45,626.77,1.19473457]
[1771654143547,1.19439596,627.42,626.75,61.51006719]
[1771654144142,1.19439596,627.43,626.75,61.51006719]
[1771654145148,1.19439596,627.44,626.75,61.51006719]
[1771654147348,1.19439596,627.45,626.75,61.51006719]
[1771654149350,1.19439596,627.46,626.75,61.51006719]
[1771654151153,1.19439596,627.47,626.75,61.51006719]
[1771654151353,1.19439596,627.49,626.75,61.51006719]
[1771654153253,1.19439596,627.5,626.75,61.51006719]
[1771654156055,1.59035183,627.61,626.75,61.51006719]
[1771654156256,1.18832118,627.5,626.75,61.51006719]
[1771654158154,1.18832118,627.51,626.75,61.51006719]
[1771654162353,1.18832118,627.5,626.75,61.51006719]
[1771654166456,1.18846136,627.5,626.75,61.51006719]
[1771654168361,1.18846136,627.49,626.75,61.51006719]
[1771654171464,1.18846136,627.48,626.75,61.51006719]
[1771654174171,1.18846136,627.47,626.75,61.51006719]
[1771654175068,2.38552775,627.7,626.75,61.51006719]
[1771654175069,1.18846136,627.51,626.78,1.19058566]
[1771654175466,1.18846136,627.5,626.79,1.19058566]
[1771654176464,1.18846136,627.5,626.8,1.19058566]
[1771654177270,1.18846136,627.49,626.8,1.19058566]
[1771654178365,1.18846136,627.48,626.81,1.19058566]
[1771654179172,1.18846136,627.48,626.82,1.19058566]
[1771654179469,1.18846136,627.47,626.82,1.19058566]
[1771654180170,1.18846136,627.47,626.83,1.57]
[1771654180369,1.18846136,627.46,626.83,2.76058566]
[1771654181269,2.38552775,627.69,626.83,2.76058566]
[1771654181270,1.18846136,627.45,626.84,1.19058566]
[1771654182374,1.18846136,627.43,626.86,1.19058566]
[1771654183374,1.18846136,627.42,626.86,1.19058566]
[1771654184577,1.18846136,627.39,626.83,1.57]
[1771654186475,1.18846136,627.38,626.83,1.57]
[1771654196789,1.59035183,627.5,626.83,1.57]
[1771654196990,1.19353738,627.38,626.83,1.57]
[1771654200191,0.27732288,627.9,626.83,1.57]
[1771654200192,1.19353738,627.35,626.83,1.57]
[1771654200392,1.19353738,627.34,626.83,1.57]
[1771654200891,1.19353738,627.33,626.83,1.57]
[1771654201092,1.19353738,627.34,626.83,1.57]
[1771654202492,1.19319922,627.34,626.83,1.57]
[1771654206497,1.19319922,627.35,626.83,1.57]
[1771654206800,1.19319922,627.25,626.83,1.57]
[1771654207299,1.19319922,627.26,626.83,1.57]
[1771654207499,1.19319922,627.27,626.83,1.57]
[1771654207699,1.19319922,627.31,626.83,1.57]
[1771654209401,1.19319922,627.32,626.83,1.57]
[1771654215206,1.59035183,627.44,626.83,1.57]
[1771654215207,1.19319922,627.33,626.83,1.57]
[1771654215510,1.19319922,627.35,626.83,1.57]
[1771654224420,1.19319922,627.34,626.83,1.57]
[1771654227322,1.19319922,627.33,626.83,1.57]
[1771654237425,1.19319922,627.34,626.83,1.57]
[1771654238321,0.27749979,627.53,626.83,1.57]
[1771654238322,1.19319922,627.36,626.83,1.57]
[1771654238627,1.19319922,627.37,626.83,1.57]
[1771654239427,1.19319922,627.39,626.83,1.57]
[1771654240027,1.19319922,627.4,626.83,1.57]
[1771654240330,1.19319922,627.42,626.83,1.19560465]
[1771654241327,1.19319922,627.42,626.84,1.19560465]
[1771654241525,1.19319922,627.44,626.84,1.19560465]
[1771654243527,1.19319922,627.45,626.83,1.19560465]
[1771654245232,1.19319922,627.43,626.81,1.19560465]
[1771654245430,1.19319922,627.44,626.81,1.19560465]
[1771654250439,1.19319922,627.45,626.8,1.19560465]
[1771654253941,1.19319922,627.46,626.81,1.19560465]
[1771654255542,1.19319922,627.46,626.82,1.19560465]
[1771654256545,1.19319922,627.47,626.82,1.19560465]
[1771654265257,1.19319922,627.46,626.82,1.19560465]
[1771654268059,1.19319922,627.47,626.82,1.19560465]
[1771654268259,1.19319922,627.46,626.82,1.19560465]
[1771654274559,1.19319922,627.46,626.83,1.19560465]
[1771654275263,1.19319922,627.45,626.83,1.19560465]
[1771654277265,1.19319922,627.45,626.84,1.19560465]
[1771654278365,1.19319922,627.44,626.84,1.19560465]
[1771654280269,1.19319922,627.44,626.75,0.2774843]
[1771654280270,1.19319922,627.43,626.85,1.19560465]
[1771654281270,1.19319922,627.43,626.86,1.19560465]
[1771654282466,0.27747766,627.6,626.86,1.19560465]
[1771654282467,1.19319922,627.42,626.86,1.19560465]
[1771654282666,1.19319922,627.42,626.87,1.442]
[1771654283372,1.19319922,627.41,626.87,2.63760465]
[1771654285369,1.19319922,627.41,626.88,1.19560465]
[1771654295374,1.59035183,627.52,626.88,1.19560465]
[1771654295375,1.19319922,627.4,626.88,1.19560465]
[1771654296077,1.19319922,627.33,626.87,1.442]
[1771654296274,2.38552775,627.55,626.87,1.442]
[1771654296275,1.19319922,627.34,626.87,1.442]
[1771654298183,1.19319922,627.35,626.87,1.442]
[1771654301282,1.19319922,627.36,626.87,1.442]
[1771654301486,1.19319922,627.3,626.87,1.442]
[1771654304192,1.19319922,627.31,626.87,1.442]
[1771654313299,1.19319922,627.32,626.87,1.442]
[1771654315595,1.19319922,627.32,626.75,0.2774843]
[1771654315799,1.19319922,627.34,626.75,0.2774843]
[1771654315999,1.19319922,627.36,626.75,1.47308895]
[1771654320802,1.19319922,627.37,626.76,1.19560465]
[1771654321805,1.19319922,627.38,626.77,1.19560465]
[1771654324911,1.19319922,627.4,626.79,1.19560465]
[1771654326709,1.1924145,627.4,626.79,1.19442923]
[1771654329316,1.1924145,627.41,626.79,1.19442923]
[1771654331518,1.1924145,627.41,626.8,1.19442923]
[1771654335322,1.1924145,627.41,626.79,1.19442923]
[1771654335518,1.1924145,627.41,626.8,1.19442923]
[1771654335820,1.1924145,627.48,626.87,1.19442923]
[1771654336318,1.1924145,627.49,626.86,1.19442923]
[1771654338319,1.1924145,627.5,626.85,1.19442923]
[1771654339324,1.1924145,627.51,626.86,1.19442923]
[1771654341323,1.59035183,627.63,626.75,0.2774843]
[1771654341324,1.1924145,627.52,626.85,1.19442923]
[1771654341627,1.1924145,627.53,626.87,1.19442923]
[1771654341825,1.1924145,627.55,626.89,1.19442923]
[1771654342423,1.1924145,627.55,626.88,1.19442923]
[1771654343323,1.59035183,627.67,626.88,1.19442923]
[1771654343324,1.1924145,627.56,626.88,1.19442923]
[1771654343828,1.1924145,627.57,626.89,1.19442923]
[1771654345225,1.1924145,627.57,626.88,1.19442923]
[1771654346126,1.1924145,627.58,626.88,1.19442923]
[1771654347926,1.1924145,627.6,626.89,1.19442923]
[1771654348127,1.1924145,627.61,626.91,1.19442923]
[1771654348327,1.1924145,627.62,626.91,1.19442923]
[1771654349230,1.1924145,627.63,626.92,1.19442923]
[1771654350329,1.1924145,627.64,626.91,1.19442923]
[1771654360243,1.1924145,627.64,626.92,1.19442923]
[1771654360445,1.1924145,627.64,626.91,1.19442923]
[1771654360944,0.2773903,627.83,626.76,1.269]
[1771654364746,0.2773903,627.83,626.75,0.2774843]
[1771654368050,0.2773903,627.83,626.76,2.159]
[1771654400973,0.2773903,627.83,626.75,0.2774843]
[1771654405083,2.38787353,627.82,627.05,1.19551703]
[1771654405284,1.19393676,627.59,627.06,1.19551703]
[1771654405481,1.19393676,627.6,627.06,1.19551703]
[1771654418002,1.19393676,627.65,627.11,1.19551703]
[1771654419303,1.19393676,627.65,627.1,1.19551703]
[1771654420409,1.19393676,627.66,627.1,1.19551703]
[1771654423315,1.19393676,627.68,627.11,1.19551703]
[1771654425314,1.19393676,627.79,627.19,1.19551703]
[1771654426317,1.19393676,627.8,627.18,1.19551703]
[1771654428315,1.19393676,627.8,627.06,1.5940227]
[1771654428316,1.19393676,627.81,627.17,1.19551703]
[1771654429421,1.19393676,627.82,627.17,1.19551703]
[1771654430322,1.19393676,627.82,627.16,1.19551703]
[1771654432424,1.19393676,627.83,627.15,1.19551703]
[1771654435325,1.19393676,627.86,627.17,1.19551703]
[1771654436322,1.19393676,627.86,627.05,1.5940227]
[1771654436323,1.19393676,627.86,627.16,1.19551703]
[1771654451338,1.19393676,627.86,627.17,1.19551703]
[1771654453340,1.19393676,627.85,627.17,1.19551703]
[1771654456244,1.19393676,627.85,627.18,1.19551703]
[1771654457441,1.19393676,627.84,627.18,1.19551703]
[1771654459448,1.19393676,627.84,627.19,1.19551703]
[1771654460250,1.19393676,627.83,627.19,1.19551703]
[1771654461451,1.19393676,627.83,626.97,2.39103406]
[1771654461452,1.19393676,627.82,627.2,1.19551703]
[1771654461956,1.19393676,627.83,627.2,1.19551703]
[1771654462452,1.19393676,627.82,627.21,1.19551703]
[1771654464362,1.19393676,627.81,627.21,1.19551703]
[1771654465262,1.19393676,627.81,627.22,1.19551703]
[1771654466362,1.19393676,627.8,627.22,1.19551703]
[1771654466860,1.19393676,627.8,627.23,2.578]
[1771654467760,1.59191568,627.92,627.23,2.578]
[1771654468162,1.19323539,627.8,627.23,3.77274659]
[1771654468665,1.19323539,627.8,627.23,2.578]
[1771654468965,0.27733061,627.98,627.23,2.578]
[1771654469167,1.19355123,627.79,627.24,1.19506282]
[1771654469366,1.19355123,627.77,627.25,1.19506282]
[1771654482277,1.19355123,627.84,627.33,1.19506282]
[1771654483282,1.19355123,627.86,627.31,1.19506282]
[1771654485284,0.27733061,627.98,627.23,2.578]
[1771654485285,1.19355123,627.87,627.3,1.19506282]
[1771654489286,1.19355123,627.88,627.29,1.19506282]
[1771654490288,0.27733061,627.98,627.23,2.578]
[1771654490588,1.19287807,627.88,627.29,1.19410994]
[1771654495391,1.19287807,627.88,627.28,1.19410994]
[1771654496986,1.19287807,627.92,627.31,1.19410994]
[1771654497986,1.19287807,627.92,627.32,3.066]
[1771654502191,1.19287807,627.93,627.32,3.066]
[1771654507800,1.19287807,627.98,627.35,1.19410994]
[1771654510199,1.19287807,627.98,627.34,1.19410994]
[1771654511299,1.19287807,627.99,627.34,1.19410994]
[1771654511903,1.19287807,628.06,627.41,1.19410994]
[1771654513204,1.19287807,628.07,627.4,1.19410994]
[1771654514404,1.19287807,628.03,627.36,1.19410994]
[1771654515308,1.19287807,628.04,627.36,1.19410994]
[1771654518009,1.19287807,628.01,627.33,1.19410994]
[1771654518306,0.27721794,628.15,627.32,3.066]
[1771654518307,1.19287807,627.97,627.32,3.066]
[1771654521306,1.19287807,627.96,627.32,3.066]
[1771654525410,1.19287807,627.95,627.32,3.066]
[1771654525613,1.19287807,627.96,627.32,3.066]
[1771654526206,1.19287807,627.95,627.32,4.26010994]
[1771654529917,1.59140164,628.06,627.32,3.066]
[1771654530317,0.27721794,628.15,627.32,3.066]
[1771654531217,1.19139977,627.95,627.32,4.25917933]
[1771654531614,1.58853303,628.06,627.32,3.066]
[1771654531816,0.27721794,628.15,627.32,3.066]
[1771654532015,1.19140546,627.95,627.32,4.25918502]
[1771654534015,1.19140546,627.95,627.32,1.19318502]
[1771654534313,1.19140546,627.94,627.33,1.19318502]
[1771654543228,1.58854061,628.05,627.34,1.19318502]
[1771654543229,1.19140546,627.93,627.34,1.19318502]
[1771654547031,1.19140546,627.91,627.31,1.19318502]
[1771654548235,1.19140546,627.88,627.28,1.19318502]
[1771654548936,1.19140546,627.85,627.25,1.19318502]
[1771654549136,1.19140546,627.81,627.21,1.19318502]
[1771654549436,1.19140546,627.81,627.2,1.19318502]
[1771654550233,1.58854061,627.93,627.08,4.51691336]
[1771654550234,1.19140546,627.82,627.19,1.19318502]
[1771654552338,1.19140546,627.83,627.18,1.19318502]
[1771654554237,1.19140546,627.84,627.17,1.19318502]
[1771654556234,1.19140546,627.85,627.17,1.19318502]
[1771654559237,1.19140546,627.84,627.17,1.19318502]
[1771654560641,1.19140546,627.82,627.16,1.19318502]
[1771654560841,1.19140546,627.81,627.14,1.19318502]
[1771654563138,1.19140546,627.81,627.13,1.19318502]
[1771654564241,1.19140546,627.82,627.13,1.19318502]
[1771654564439,1.19140546,627.82,627.14,3.584]
[1771654572153,1.19140546,627.8,627.14,3.584]
[1771654572453,1.19140546,627.69,627.14,3.584]
[1771654573152,1.19140546,627.7,627.14,3.584]
[1771654574150,1.19140546,627.71,627.14,3.584]
[1771654576157,1.19140546,627.72,627.14,3.584]
[1771654579061,1.19140546,627.81,627.14,3.584]
[1771654582257,1.19140546,627.8,627.14,3.584]
[1771654582958,1.19140546,627.72,627.14,3.584]
[1771654583258,1.19140546,627.75,627.14,3.584]
[1771654585461,1.19140546,627.78,627.14,3.584]
[1771654586260,1.19140546,627.77,627.14,3.584]
[1771654589160,1.19140546,627.76,627.14,3.584]
[1771654591163,1.19140546,627.75,627.14,3.584]
[1771654591867,1.19140546,627.66,627.14,3.584]
[1771654593667,1.19140546,627.66,627.04,69.8725124]
[1771654595570,1.19140546,627.68,627.04,69.8725124]
[1771654596469,0.27734719,627.87,627.04,69.8725124]
[1771654596470,1.19140546,627.61,627.04,69.8725124]
[1771654597266,1.19140546,627.62,627.04,69.8725124]
[1771654597470,1.19140546,627.63,627.04,69.8725124]
[1771654599168,1.19140546,627.64,627.04,69.8725124]
[1771654599373,1.19140546,627.63,627.04,69.8725124]
[1771654600170,1.19140546,627.64,627.04,69.8725124]
[1771654600369,1.19140546,627.63,627.04,69.8725124]
[1771654600574,1.19140546,627.62,627.04,69.8725124]
[1771654601669,1.19140546,627.61,627.04,69.8725124]
[1771654603577,1.19140546,627.6,627.04,69.8725124]
[1771654606273,1.19140546,627.61,627.04,69.8725124]
[1771654615181,1.19140546,627.6,627.04,69.8725124]
[1771654615478,1.19140546,627.59,627.04,69.8725124]